Cogmind - Beta 17.1 *** ADVENTURER MODE // 2026.09.24 @ 12:01:32 Player: F-forge Result: Destroyed by D-53 Grenadier with Mini Grenade Launcher Performance ------------- Evolutions (0) 0 Regions Visited (2) 400 Robots Destroyed (25) 125 Value Destroyed (462) 462 Prototype IDs (3) 60 Alien Tech Used (0) 0 Bonus (0) 0 TOTAL SCORE: 1047 Bonus ------- None Cogmind --------- Core Integrity 0/250 Matter 300/300 Energy 99/100 System Corruption 0% Temperature Cool (0) Movement Core (200) Ox3 Location -10/Mines Parts ------- > --- POWER (1) -------- (None) > --- PROPULSION (2) --- (None) > --- UTILITY (2) ------ Medium Storage Unit > --- WEAPON (2) ------- (None) > --- INVENTORY (10) --- Ion Engine Light Treads Light Treads Aluminum Leg Large Storage Unit Signal Interpreter Improved Terrain Scanner Mining Laser Peak State ------------ > --- POWER ------------ Ion Engine > --- PROPULSION ------- Aluminum Leg Aluminum Leg > --- UTILITY ---------- Small Storage Unit Seismic Detector > --- WEAPON ----------- Medium Laser Light Assault Rifle > --- INVENTORY -------- Light Ion Engine Light Treads Light Treads Improved Terrain Scanner Light Armor Plating Light Armor Plating Light Assault Rifle Mining Laser [Rating: 8] Favorites ----------- Power Ion Engine Engine Ion Engine Propulsion Light Treads Treads Light Treads Leg Aluminum Leg Utility Small Storage Unit Device Seismic Detector Storage Small Storage Unit Protection Light Armor Plating Weapon Light Assault Rifle Energy Gun Medium Laser Ballistic Gun Light Assault Rifle Special Weapon Mining Laser Build | -11 -10 -10 ------- Run | Yrd Mat Min Slots Evolved . | . . . Power . | . . . Propulsion . | . . . Utility . | . . . Weapon . | . . . Parts Attached 20 | 7 11 2 Power 2 | 1 1 . Engine 2 | 1 1 . Core . | . . . Reactor . | . . . Propulsion 9 | 2 7 . Treads 2 | 2 . . Leg 7 | . 7 . Wheel . | . . . Hover . | . . . Flight . | . . . Utility 5 | 2 1 2 Device 2 | 1 . 1 Storage 2 | 1 1 . Processor . | . . . Hackware . | . . . Protection 1 | . . 1 Artifact . | . . . Weapon 4 | 2 2 . Energy Gun 1 | 1 . . Energy Cannon . | . . . Ballistic Gun 2 | 1 1 . Ballistic Cannon . | . . . Launcher . | . . . Special Weapon 1 | . 1 . Impact Weapon . | . . . Slashing Weapon . | . . . Piercing Weapon . | . . . Special Melee Weapon . | . . . Unidentified Prototypes . | . . . Parts Lost 9 | . 2 7 Power 1 | . . 1 Propulsion 2 | . . 2 Utility 3 | . 1 2 Weapon 3 | . 1 2 Highest Loss Streak 7 | . 2 7 To Critical Strikes . | . . . Average Backups 4 | 3 8 9 Power . | . . 1 Propulsion 2 | 1 2 3 Utility . | . 3 4 Weapon 1 | 1 1 1 Tool/Special . | . . . Unused Backups 5 | . 2 3 Power 1 | . 1 . Propulsion 1 | . . 1 Utility 3 | . 1 2 Weapon . | . . . Tool/Special . | . . . Average Slot Usage (%) 96 | . 98 89 Engine 13 | . 14 13 Leg 27 | . 27 26 Device 11 | . 13 5 Storage 14 | . 14 14 Energy Gun 9 | . 12 . Ballistic Gun 17 | . 14 27 Peak Build Rating 8 | 7 8 8 Average Rating 6 | 6 7 7 On Entrance 4 | . 7 7 Avg Prop Armor Cover (%) . | . . . Naked Turns . | . . . Heaviest Build 19 | 14 19 18 Greatest Support 40 | 40 20 20 Greatest Overweight (x) 4 | . . 4 Average Overweight (x) . | . . . Largest Inventory Capacity 10 | 8 10 10 Average Capacity 8 | 7 8 10 Most Carried 10 | 6 10 10 Average Carried 4 | 3 8 9 Final Capacity 10 | 8 10 10 Final Carried 10 | 6 10 8 Class Distribution -------------------- 100% | Mutant Dominant Class ---------------- Mutant | -10/Materials Mutant | -10/Mines Resources | -11 -10 -10 ----------- Run | Yrd Mat Min Matter Collected 488 | 285 182 21 Remotely . | . . . Salvage Created 749 | 79 670 . Parts 46 | 10 36 . Haulers Intercepted 2 | . 2 . Recyclers Shooed 1 | . . 1 Parts Field Recycled . | . . . Retrieved Matter . | . . . Parts Self-Destructed . | . . . Prevented . | . . . Parts Restored . | . . . Kills | -11 -10 -10 ------- Run | Yrd Mat Min Combat Hostiles Destroyed 12 | . 12 . Guns 12 | . 12 . Classes Destroyed 6 | 1 5 . Worker 3 | . 3 . Tunneler 5 | 5 . . Hauler 2 | . 2 . Watcher 3 | . 3 . Swarmer 3 | . 3 . Grunt 9 | . 9 . Best Kill Streak 8 | 2 8 . Combat Bots Only 4 | . 4 . Max Kills in Single Turn 2 | 1 2 . Gunslinging 1 | . 1 . Exploded . | . . . Melee . | . . . Uniques/NPCs Destroyed . | . . . Combat | -11 -10 -10 -------- Run | Yrd Mat Min Hostile Shots Fired 70 | . 49 21 Missed 14 | . 12 2 Hits 56 | . 37 19 Projectile 56 | . 37 19 AOE 23 | . . 23 Damage Taken 1006 | . 329 677 Core 265 | . 45 220 Absorbed by Shields . | . . . Ignored by Resistances 283 | . 101 182 Core Remaining (%) 100 | 100 . . Volleys Fired 73 | 15 51 7 Largest 2 | 2 2 2 Hottest 100 | 70 100 40 Shots Fired 145 | 30 101 14 Gun 144 | 30 100 14 Cannon . | . . . Launcher . | . . . Special 1 | . 1 . Kinetic 81 | 15 52 14 Thermal 64 | 15 49 . Explosive . | . . . Electromagnetic . | . . . Robot Hit Streak 35 | 10 25 35 Robot Miss Streak 2 | 1 2 1 Penetration Max . | . . . Secondary Targets 3 | . 3 . Max Gunslinging Chain 1 | . 1 . Shots Hit Robots 117 | 23 81 13 Core Hits 48 | 8 36 4 Critical Kills . | . . . Critical Parts Destroyed . | . . . Critical Strikes 5 | . 5 . Burn 5 | . 5 . Melee Attacks . | . . . Impact . | . . . Slashing . | . . . Piercing . | . . . Sneak Attacks . | . . . Combat Hostiles . | . . . Follow-up Attacks . | . . . Damage Inflicted 1193 | 238 837 118 Guns 1162 | 238 835 89 Cannons . | . . . Explosions . | . . . Melee . | . . . Ramming 31 | . 2 29 Kinetic 496 | 78 329 89 Thermal 666 | 160 506 . Explosive . | . . . Electromagnetic . | . . . Impact . | . . . Slashing . | . . . Piercing . | . . . Highest Corruption . | . . . Average Corruption . | . . . Corruption Purged . | . . . Corruption Blocked . | . . . Overload Shots . | . . . Overflow Damage . | . . . Projectiles . | . . . Explosions . | . . . Melee . | . . . Knockbacks 1 | . . 1 Impact 1 | . . 1 Kinetic . | . . . Secondary . | . . . Self-Inflicted Damage . | . . . Shots . | . . . Rammed . | . . . Targets Rammed 8 | . 1 7 Kicked 8 | . 1 7 Crushed . | . . . Highest Temperature 236 | 70 236 . Average Temperature 53 | 28 61 . Received Heat Transfer 207 | . 207 . Effects 3 | . 3 . Interference 3 | . 3 . Siege Activations . | . . . Martial Activations . | . . . Shielding Activations . | . . . Robots Disrupted . | . . . Combat Hostiles . | . . . Robots Corrupted . | . . . Combat Hostiles . | . . . Parts Fried . | . . . Impact Corruptions . | . . . Robots Melted . | . . . Combat Hostiles . | . . . Parts Melted 3 | . 3 . Heat Transferred 2331 | 481 1850 . Parts Sabotaged . | . . . Parts Stolen . | . . . Parts Stripped . | . . . Power Chain Reactions . | . . . Alert | -11 -10 -10 ------- Run | Yrd Mat Min Maximum Alert Level . | . . . Low Security (%) 100 | 100 100 100 Level 1 . | . . . Level 2 . | . . . Level 3 . | . . . Level 4 . | . . . Level 5 . | . . . High Security . | . . . Max Security . | . . . Peak Influence 132 | 5 132 9 Initial 9 | . . 9 Average 5 | . 40 . Influence Increases 490 | 25 465 . Destroy 0b10 Robot/C 240 | . 240 . Destroy 0b10 Robot/NC 65 | 25 40 . Destroy Leader 60 | . 60 . Successful Hack 41 | . 41 . Select Force Hacks 60 | . 60 . Disable Machine 9 | . 9 . Lose Combat Pursuer 15 | . 15 . Influence Decreases 490 | 25 435 30 Entered New Map 21 | . . 21 Time Decay 469 | 25 435 9 Squads Dispatched 2 | . 2 . Investigation 2 | . 2 . Extermination . | . . . Reinforcement . | . . . Assault . | . . . Garrison . | . . . Intercept . | . . . Searches Triggered . | . . . Construction Impeded . | . . . Haulers Reinforced . | . . . Active Scanning Responses . | . . . Cargo Convoy Interrupts . | . . . Stealth | -11 -10 -10 --------- Run | Yrd Mat Min Distress Signals 3 | . 3 . Communications Jammed . | . . . Distress Signals . | . . . Times Spotted 26 | . 21 5 Peak Tracking Total 4 | . 4 2 Tactical Retreats 1 | . 1 . Traps | -11 -10 -10 ------- Run | Yrd Mat Min Traps Triggered 1 | . 1 . Indirectly . | . . . Trap Hack Attempts . | . . . Triggered . | . . . Disarmed . | . . . Reprogrammed . | . . . Reused . | . . . Traps Extracted . | . . . Installed . | . . . Triggered . | . . . Machines | -11 -10 -10 ---------- Run | Yrd Mat Min Machines Disabled 1 | . 1 . Max in Single Turn 1 | . 1 . Machines Repaired . | . . . Machines Dismantled . | . . . Machines Sabotaged . | . . . Overloaded Fab Kills . | . . . Hacking | -11 -10 -10 --------- Run | Yrd Mat Min Machines Accessed 10 | . 10 . Terminals 8 | . 8 . Fabricators . | . . . Repair Stations . | . . . Recycling Units 2 | . 2 . Scanalyzers . | . . . Garrison Access . | . . . Total Hacks 25 | . 25 . Successful 18 | . 18 . Failed 7 | . 7 . Catastrophic 1 | . 1 . Database Lockouts . | . . . Manual 18 | . 18 . Terminals 23 | . 23 . Fabricators . | . . . Repair Stations . | . . . Recycling Units 2 | . 2 . Scanalyzers . | . . . Garrison Access . | . . . Terminal Hacks 8 | . 8 . Record 1 | . 1 . Prototype ID Bank 2 | . 2 . Level Access Points 1 | . 1 . Branch Access Points 1 | . 1 . Terminal Index 1 | . 1 . Recycling Unit Index 1 | . 1 . Locate Traps 1 | . 1 . Fabricator Hacks . | . . . Repair Station Hacks . | . . . Recycling Unit Hacks . | . . . Scanalyzer . | . . . Garrison Access Hacks . | . . . Unauthorized Hacks 10 | . 10 . Terminals 8 | . 8 . Botnet 8 | . 8 . Fabricators . | . . . Repair Stations . | . . . Recycling Units 2 | . 2 . Tunnel 2 | . 2 . Scanalyzers . | . . . Garrison Access . | . . . Data Cores Recovered . | . . . Used . | . . . Hacking Detections 8 | . 8 . Full Trace Events . | . . . Feedback Events . | . . . Feedback Blocked . | . . . Robot Schematics Acquired . | . . . Robots Built . | . . . Authchips . | . . . Time . | . . . Total Robot Build Rating . | . . . Part Schematics Acquired . | . . . Parts Built . | . . . Authchips . | . . . Time . | . . . Total Part Build Rating . | . . . Part Studies Acquired . | . . . Parts Repaired . | . . . Time . | . . . Parts Recycled . | . . . Recycled Matter . | . . . Retrieved Matter . | . . . Retrieved Components . | . . . Parts Scanalyzed . | . . . Part Schematics Acquired . | . . . Parts Damaged . | . . . Bothacking | -11 -10 -10 ------------ Run | Yrd Mat Min Used RIF Installer . | . . . Robots Hacked . | . . . Non-combat . | . . . Combat . | . . . Robot Hacks Applied . | . . . Relay Couplers Released . | . . . Fabnet Peak Effective % . | . . . Robots Rewired . | . . . Allies Hacked . | . . . Hacks Repelled . | . . . Allies | -11 -10 -10 -------- Run | Yrd Mat Min Total Allies . | . . . Largest Group . | . . . Highest-Rated Group . | . . . Highest-Rated Ally . | . . . Total Orders . | . . . Ally Attacks . | . . . Total Damage . | . . . Kills . | . . . Allies Corrupted . | . . . Allies Melted . | . . . Intel | -11 -10 -10 ------- Run | Yrd Mat Min Active Infowar (turns) 1383 | 132 1099 152 Sensors 152 | . . 152 Seismic 1231 | 132 1099 . Robot Analysis Total . | . . . Derelict Logs Recovered 2 | . . 2 Drone Launches . | . . . Drone Recoveries . | . . . Exploration | -11 -10 -10 ------------- Run | Yrd Mat Min Turns Passed 9295 | 7763 1158 374 Spaces Moved 1098 | 160 677 261 Core 5 | 2 . 3 Treads 158 | 158 . . Legs 935 | . 677 258 Wheels . | . . . Hover . | . . . Flight . | . . . Fastest Speed 50 | 50 120 120 Average Speed 125 | 158 120 121 Slowest Speed 250 | 160 120 250 Overloaded Moves . | . . . Propulsion Burnouts . | . . . Robots Hopped . | . . . Potential Cave-ins . | . . . Cave-ins Triggered . | . . . Exploration Rate (%) 50 | 8 90 54 Regions Visited 2 Branch Regions 1 Pre-discovered Areas 4 | . 2 2 Known Exits Taken 1 | . 1 . Unknown Exits Taken 1 | 1 . . Scrap Searched 1 | . . 1 Spaces Dug . | . . . Terrain Destroyed . | . . . Melee . | . . . Projectile . | . . . AOE . | . . . Terrain Rammed . | . . . Walls Destroyed . | . . . Machines Disabled . | . . . Actions | -11 -10 -10 --------- Run | Yrd Mat Min Total 8877 | 7639 931 307 Wait 7655 | 7452 173 30 Move 1096 | 159 676 261 Hop . | . . . Pick Up 12 | 6 6 . Fast Attach 9 | 7 2 . Attach 3 | . 1 2 Detach . | . . . Swap 12 | . 12 . Drop 9 | . 9 . Fire 73 | 15 51 7 Melee . | . . . Ram . | . . . Kick 8 | . 1 7 Crush . | . . . Escape Stasis . | . . . Rewire . | . . . Trap . | . . . Miscellaneous . | . . . Route ------- -11/Scrapyard -10/Materials (discovered 5 exits: *Mat x3 / *Min x2) -10/Mines (discovered 1 exit: *Mat) History --------- Turn | Location | Event 38 | -11/Scrapyard | Discovered new exit (range 15) 7764 | -11/Scrapyard | Entered Materials 7787 | -10/Materials | Build established: Mutant 8085 | -10/Materials | Discovered new exit (range 12) 8377 | -10/Materials | Discovered new exit (range 16) 8392 | -10/Materials | Discovered new exit (range 8) 8532 | -10/Materials | Identified exit to Mines 8532 | -10/Materials | Identified exit to Materials 8922 | -10/Materials | Entered Mines 8923 | -10/Mines | Learned location of Storage (-9) 8926 | -10/Mines | Learned 8 Materials zone layouts 8962 | -10/Mines | Met a Derelict bent on vengeance 9157 | -10/Mines | Discovered exit to Materials (range 8) 9224 | -10/Mines | Assembled infested the area 9293 | -10/Mines | Core integrity fell below 50% 9296 | -10/Mines | Destroyed by D-53 Grenadier with Mini Grenade Launcher Last Messages --------------- 09268_ Acquired 10 matter. 09269_ Acquired 1 matter. 09271_ 92-LRQ(g): "I WILL HAVE VENGEANCE!" 09273_ Kicked R-06 Scavenger. 09275_ C-45 Heavy ARC bursts open, deploying its payload. 09275_ D-53 Grenadier unfolds itself. 09275_ R-06 Scavenger destroyed. 09277_ 92-LRQ(g) destroyed. 09279_ Aluminum Leg destroyed. 09282_ Sensor Array destroyed. 09283_ The unstable cave ceiling collapses. 09286_ Aluminum Leg destroyed. 09288_ Ion Engine destroyed. 09288_ Lgt. Assault Rifle destroyed. 09291_ The unstable cave ceiling collapses. 09294_ Lgt. Armor Plating destroyed. 09295_ The unstable cave ceiling collapses. 09295_ U-05 Engineer builds a Wall. 09296_ The unstable cave ceiling collapses. Map ----- +----------------------------------------------------+ | ???# #????????????????????????????????????? | | ???## # ##????????????????????????????????????? | | ????## ####?????????????????????????????????????? | | ##???# #????????????????????????????????????????? | | ##??# #????????????????????????????????????????? | | #### #????????????????????????????????????????? | | #????????????????????????????????????????? | | #??????????###???????????????????????????? | | # ####?????????# ##??????????????????????????? | | ## ##???????????# #??????????????????????????? | | ## #???????##### #??????????????????????????? | | #??????## #??????????????????????????? | | ## #?????## #####??????????????????????? | | ?# ####### ???????????????????????? | | ?# #????????????????????????????? | | ?# !% #???????????????????????????????? | | ?############# ##???????????????????????????????? | | ?????????????# ##????????????????????????????????? | | ?????????????# #????????????????????#????????????? | | ?????????????# #?????#?????#####?## ##???????????? | | ?????????????# #?????# ##### ## #???????????? | | ?????????????# #???###u# # #???????????? | | ?????????????#%#??## ##??????????? | | ????########## #??# #k #??????????? | | ????# % #??# #??????????????? | | ????# ##########??# @ #??????????????? | | ###?# #???????????##!!] ##??????????????? | | #?# #????????????## #???????????????? | | # ### ###########???## #???????????????? | | # #????#### #???????????????? | | # ############# ####????# d ###???????????????? | | # #???????????# #????# #?????????????????? | | # #???????????#### ###### %d ###??##?????????????? | | #??????????????# #### #?????????????? | | # #??????????????####### #?????????????? | | ########??????#####??# #????????????? | | #????## ##?## ???????? | | ##### #????# ##?### ?????? | | #??# #???## #???## #### #### ????? | | # #?# #??## #????######???? ??????????? | | ## ## #??# < #??????????????? #????????? | | ?# ## #### ##?????????????????#????????? | | ?## ### ##???????????????????????????? | | ???###?####### ##????????????????????????????? | | ?????????????## #?????????????????????????????? | | ???????????????# ##?????????????????????????????? | | ????????????????###??????????????????????????????? | | ?????????????????????????????????????????????????? | | | | | +----------------------------------------------------+ Best States ------------- Heat Dissipation 25 Energy Generation 10 Energy Capacity 250 Matter Stores 300 Matter Capacity 300 Sight Range 16 Robot Scan Range 14 Terrain Scan Density 10 Resistance: KI 20 Resistance: TH 20 Resistance: EX 20 Resistance: EM 20 Resistance: I 20 Resistance: S 20 Resistance: P 20 Evasion (%) 55 Recoil Reduction 2 Offensive Hacking 10 Item Schematics ----------------- None Robot Schematics ------------------ None Fabricated ------------ Nothing Repaired ---------- Nothing Studied --------- None Alien Tech Used ----------------- None Achievements -------------- None Challenges ------------ None Game ------ Seed StealthServoTriangulator Manual? 0 Play Time 00:19:24 Cumulative 150.2 hours Start 2026.09.24 @ 11:44:09 End 2026.09.24 @ 12:01:32 Sessions 1 Manual Loads 0 Difficulty Adventurer Special Mode None Game No. 63 Rogue 0 Adventurer 63 Explorer 0 Win Type - Total 1 Types 1/0/0/0/0/0/0/0/0/0 Lore% 54 Gallery% 44 Achievement% 41 Wizard Run 0 Options --------- Layout 2 ASCII 0 Keyboard 0 Movement Arrows Keybinds 0 Fullscreen 1 Font 16/Terminus Map View 55x47 Zoom Use 4% Tactical HUD 1 Map Filters NONE Filters NONE Steam 1 RUN: 7bd5b5b6-240b-4499-8f6c-8aaccf2b3b3f